Cogmind - Beta 10.2 @@@ ROGUE MODE // 2021.05.22 @ 22:59:10 Player: Plexion Result: Destroyed by 8R-AWN with 8R-AWN's Boregun Performance ------------- Evolutions (0) 0 Regions Visited (3) 600 Robots Destroyed (15) 75 Value Destroyed (332) 332 Prototype IDs (24) 480 Alien Tech Used (0) 0 Bonus (300) 300 TOTAL SCORE: 1787 Bonus ------- Aligned with FarCom 300 Cogmind --------- Core Integrity 0/250 Matter 83/300 Energy 98/100 System Corruption 2% Temperature Cool (1) Movement Treading (180) Ox1 Location -10/Exiles Parts ------- > --- POWER (1) -------- (None) > --- PROPULSION (2) --- Light Treads > --- UTILITY (2) ------ Large Storage Unit Large Storage Unit > --- WEAPON (2) ------- EM Pulse Gun > --- INVENTORY (16) --- Flying Fortress v7 Small Storage Unit Superbattery (2000) High-capacity Matter Pod Firepult Rocket Launcher Peak State ------------ > --- POWER ------------ Ion Engine > --- PROPULSION ------- Light Treads Light Treads > --- UTILITY ---------- Large Storage Unit Large Storage Unit > --- WEAPON ----------- Assault Rifle Rocket Launcher > --- INVENTORY -------- Reinforced Deuterium Engine Reinforced Deuterium Engine Light Fission Core Light Treads Flying Fortress v7 Small Storage Unit Superbattery EM Pulse Gun Firepult Assault Rifle Assault Rifle [Rating: 16] Favorites ----------- Power Ion Engine Engine Ion Engine Propulsion Light Treads Treads Light Treads Utility Small Storage Unit Device Improved Heat Sink Storage Small Storage Unit Weapon Assault Rifle Energy Gun Small Laser Ballistic Gun Assault Rifle Launcher Rocket Launcher Build | -11 -10 -10 -10 ------- Run | Scr Mat Min Exi Slots Evolved . | . . . . Power . | . . . . Propulsion . | . . . . Utility . | . . . . Weapon . | . . . . Parts Attached 24 | 6 6 5 7 Power 1 | 1 . . . Engine 1 | 1 . . . Core . | . . . . Reactor . | . . . . Propulsion 4 | 2 1 . 1 Treads 4 | 2 1 . 1 Leg . | . . . . Wheel . | . . . . Hover . | . . . . Flight . | . . . . Utility 7 | 1 1 3 2 Device 2 | . 1 1 . Storage 5 | 1 . 2 2 Processor . | . . . . Hackware . | . . . . Protection . | . . . . Artifact . | . . . . Weapon 12 | 2 4 2 4 Energy Gun 3 | 2 . . 1 Energy Cannon . | . . . . Ballistic Gun 6 | . 3 1 2 Ballistic Cannon . | . . . . Launcher 3 | . 1 1 1 Special Weapon . | . . . . Impact Weapon . | . . . . Slashing Weapon . | . . . . Piercing Weapon . | . . . . Special Melee Weapon . | . . . . Unidentified Prototypes 1 | . . 1 . Parts Lost 6 | . . . 6 Power 1 | . . . 1 Propulsion 2 | . . . 2 Utility . | . . . . Weapon 3 | . . . 3 Highest Loss Streak 6 | . . . 6 Average Slot Usage (%) 97 | . 93 100 98 Engine 13 | . 14 14 13 Treads 27 | . 28 28 27 Device 5 | . 7 9 . Storage 20 | . 14 18 28 Ballistic Gun 26 | . 25 27 25 Naked Turns . | . . . . Heaviest Build 43 | 11 14 17 43 Greatest Support 40 | 40 40 40 40 Greatest Overweight (x) 1 | . . . 1 Average Overweight (x) . | . . . . Largest Inventory Capacity 16 | 6 6 8 16 Average Capacity 8 | 5 6 6 14 Most Carried 16 | 2 6 8 16 Average Carried 7 | 1 5 6 11 Final Capacity 16 | 6 6 8 16 Final Carried 10 | 2 6 8 10 Class Distribution -------------------- 100% | Mutant Dominant Class ---------------- Mutant | -10/Materials Mutant | -10/Mines Mutant | -10/Exiles Resources | -11 -10 -10 -10 ----------- Run | Scr Mat Min Exi Matter Collected 558 | 207 231 120 . Remotely . | . . . . Salvage Created 479 | . 286 175 18 Parts 24 | . 22 2 . Haulers Intercepted 1 | . 1 . . Recyclers Shooed . | . . . . Parts Field Recycled . | . . . . Retrieved Matter . | . . . . Parts Self-Destructed . | . . . . Prevented . | . . . . Kills | -11 -10 -10 -10 ------- Run | Scr Mat Min Exi Combat Hostiles Destroyed 18 | . 11 2 5 Guns 9 | . 9 . . AOE 9 | . 2 2 5 Classes Destroyed 5 | . 3 1 1 Hauler 1 | . 1 . . Recycler 1 | . . 1 . Swarmer 6 | . 6 . . Grunt 7 | . 5 2 . Assembled 5 | . . . 5 Best Kill Streak 5 | . 3 2 5 Combat Bots Only 5 | . 3 2 5 Max Kills in Single Turn 2 | . 2 2 1 Gunslinging . | . . . . Exploded 2 | . 2 2 1 Melee . | . . . . Uniques/NPCs Destroyed . | . . . . Combat | -11 -10 -10 -10 -------- Run | Scr Mat Min Exi Damage Taken 1101 | . 336 10 755 Core 265 | . 58 10 197 Absorbed by Shields . | . . . . Core Remaining (%) 100 | 100 . . . Volleys Fired 66 | . 26 10 30 Largest 2 | . 2 2 2 Hottest 80 | . 80 40 40 Shots Fired 117 | . 51 18 48 Gun 108 | . 50 16 42 Cannon . | . . . . Launcher 9 | . 1 2 6 Special . | . . . . Kinetic 89 | . 36 16 37 Thermal 14 | . 14 . . Explosive 9 | . 1 2 6 Electromagnetic 5 | . . . 5 Robot Hit Streak 18 | . 15 6 18 Robot Miss Streak 4 | . 3 3 4 Penetration Max . | . . . . Secondary Targets . | . . . . Shots Hit Robots 81 | . 32 11 38 Core Hits 39 | . 16 6 17 Critical Hits . | . . . . Critical Kills . | . . . . Critical Parts Destroyed . | . . . . Melee Attacks . | . . . . Impact . | . . . . Slashing . | . . . . Piercing . | . . . . Sneak Attacks . | . . . . Combat Hostiles . | . . . . Follow-up Attacks . | . . . . Damage Inflicted 1434 | . 504 220 710 Guns 968 | . 397 131 440 Cannons . | . . . . Explosions 466 | . 107 89 270 Melee . | . . . . Ramming . | . . . . Kinetic 846 | . 279 131 436 Thermal 118 | . 118 . . Explosive 466 | . 107 89 270 Electromagnetic 4 | . . . 4 Impact . | . . . . Slashing . | . . . . Piercing . | . . . . Highest Corruption 2 | . 2 2 2 Average Corruption 2 | . 2 2 2 Corruption Purged . | . . . . Effects 21 | . 5 9 7 Message Errors 11 | . 3 3 5 Energy Discharges 3 | . . 2 1 Data Loss (minor) 4 | . 1 2 1 Targeting Errors 3 | . 1 2 . Overload Shots . | . . . . Overflow Damage . | . . . . Projectiles . | . . . . Explosions . | . . . . Melee . | . . . . Knockbacks . | . . . . Impact . | . . . . Kinetic . | . . . . Secondary . | . . . . Self-Inflicted Damage 35 | . 11 . 24 Shots 2 | . 1 . 1 Rammed . | . . . . Targets Rammed . | . . . . Kicked . | . . . . Crushed . | . . . . Highest Temperature 72 | . 72 . 16 Average Temperature 28 | . 31 . 10 Received Heat Transfer 122 | . 96 6 20 Siege Activations . | . . . . Robots Corrupted . | . . . . Combat Hostiles . | . . . . Parts Fried . | . . . . Impact Corruptions . | . . . . Robots Melted . | . . . . Combat Hostiles . | . . . . Parts Melted . | . . . . Heat Transferred 275 | . 275 . . Parts Sabotaged . | . . . . Parts Stolen . | . . . . Parts Stripped . | . . . . Power Chain Reactions . | . . . . Missiles Intercepted . | . . . . Alert | -11 -10 -10 -10 ------- Run | Scr Mat Min Exi Peak Influence 230 | . 230 55 . Initial 31 | . . 31 . Average 64 | . 110 28 . Maximum Alert Level 1 | . 1 . . Low Security (%) 96 | 100 91 100 . Level 1 3 | . 8 . . Level 2 . | . . . . Level 3 . | . . . . Level 4 . | . . . . Level 5 . | . . . . High Security . | . . . . Max Security . | . . . . Squads Dispatched 1 | . 1 . . Investigation 1 | . 1 . . Extermination . | . . . . Reinforcement . | . . . . Assault . | . . . . Garrison . | . . . . Intercept . | . . . . Construction Impeded . | . . . . Haulers Reinforced . | . . . . Stealth | -11 -10 -10 -10 --------- Run | Scr Mat Min Exi Distress Signals 1 | . 1 . . Communications Jammed . | . . . . Distress Signals . | . . . . Times Spotted 28 | . 18 2 8 Peak Tracking Total 10 | . 4 2 10 Tactical Retreats 2 | . 1 . 1 Traps | -11 -10 -10 -10 ------- Run | Scr Mat Min Exi Traps Triggered 3 | . 3 . . Indirectly . | . . . . Trap Hack Attempts . | . . . . Triggered . | . . . . Disarmed . | . . . . Reprogrammed . | . . . . Reused 4 | . . . 4 Traps Extracted . | . . . . Installed 4 | . . . 4 Triggered . | . . . . Exploded 3 | . . . 3 Machines | -11 -10 -10 -10 ---------- Run | Scr Mat Min Exi Machines Disabled 6 | . . . 6 Max in Single Turn 2 | . . . 2 Machines Sabotaged . | . . . . Garrisons Compromised . | . . . . Overloaded Fab Kills . | . . . . Fab Network Shutdowns . | . . . . Hacking | -11 -10 -10 -10 --------- Run | Scr Mat Min Exi Machines Accessed 4 | . 1 1 2 Terminals 1 | . 1 . . Fabricators . | . . . . Repair Stations . | . . . . Recycling Units . | . . . . Scanalyzers . | . . . . Garrison Access . | . . . . Total Hacks 4 | . 1 1 2 Successful 4 | . 1 1 2 Failed . | . . . . Catastrophic . | . . . . Database Lockouts . | . . . . Manual 2 | . 1 . 1 Terminals 1 | . 1 . . Fabricators . | . . . . Repair Stations . | . . . . Recycling Units . | . . . . Scanalyzers . | . . . . Garrison Access . | . . . . Terminal Hacks 4 | . 1 1 2 Record 1 | . . . 1 Open Door 1 | . . 1 . Zone Layout 1 | . 1 . . EX-Prototype ID Bank 1 | . . . 1 Fabricator Hacks . | . . . . Repair Station Hacks . | . . . . Recycling Unit Hacks . | . . . . Scanalyzer . | . . . . Garrison Access Hacks . | . . . . Unauthorized Hacks . | . . . . Terminals . | . . . . Fabricators . | . . . . Repair Stations . | . . . . Recycling Units . | . . . . Scanalyzers . | . . . . Garrison Access . | . . . . Data Cores Recovered . | . . . . Used . | . . . . Hacking Detections . | . . . . Full Trace Events . | . . . . Feedback Events . | . . . . Feedback Blocked . | . . . . Robot Schematics Acquired . | . . . . Robots Built . | . . . . Matter . | . . . . Time . | . . . . Total Robot Build Rating . | . . . . Part Schematics Acquired . | . . . . Parts Built . | . . . . Matter . | . . . . Time . | . . . . Total Part Build Rating . | . . . . Parts Repaired . | . . . . Time . | . . . . Parts Recycled . | . . . . Recycled Matter . | . . . . Retrieved Matter . | . . . . Retrieved Components . | . . . . Parts Scanalyzed . | . . . . Part Schematics Acquired . | . . . . Parts Damaged . | . . . . Bothacking | -11 -10 -10 -10 ------------ Run | Scr Mat Min Exi Used RIF Installer . | . . . . Robots Hacked . | . . . . Non-combat . | . . . . Combat . | . . . . Robot Hacks Applied . | . . . . Relay Couplers Released . | . . . . Robots Rewired . | . . . . Allies Hacked . | . . . . Hacks Repelled . | . . . . Allies | -11 -10 -10 -10 -------- Run | Scr Mat Min Exi Total Allies . | . . . . Largest Group . | . . . . Highest-Rated Group . | . . . . Highest-Rated Ally . | . . . . Total Orders . | . . . . Ally Attacks . | . . . . Total Damage . | . . . . Kills . | . . . . Allies Corrupted . | . . . . Allies Melted . | . . . . Intel | -11 -10 -10 -10 ------- Run | Scr Mat Min Exi Robot Analysis Total . | . . . . Derelict Logs Recovered 1 | . . 1 . Drone Launches . | . . . . Drone Recoveries . | . . . . Exploration | -11 -10 -10 -10 ------------- Run | Scr Mat Min Exi Turns Passed 3148 | 113 1006 1073 956 Spaces Moved 1730 | 59 554 642 475 Core 3 | 3 . . . Treads 1727 | 56 554 642 475 Legs . | . . . . Wheels . | . . . . Hover . | . . . . Flight . | . . . . Fastest Speed 50 | 50 160 160 160 Average Speed 163 | 154 160 160 173 Slowest Speed 180 | 160 160 160 180 Overloaded Moves . | . . . . Propulsion Burnouts . | . . . . Robots Hopped . | . . . . Cave-ins Triggered . | . . . . Exploration Rate (%) 62 | 4 89 90 67 Regions Visited 3 Branch Regions 2 Pre-discovered Areas 2 | . . 1 1 Known Exits Taken . | . . . . Unknown Exits Taken 3 | 1 1 1 . Scrap Searched 1 | . . 1 . Spaces Dug 12 | . 12 . . Terrain Destroyed 66 | . 12 23 31 Melee . | . . . . Projectile . | . . . . AOE 66 | . 12 23 31 Terrain Rammed . | . . . . Walls Destroyed . | . . . . Machines Disabled . | . . . . Actions | -11 -10 -10 -10 --------- Run | Scr Mat Min Exi Total 1932 | 78 623 671 560 Wait 73 | 12 30 2 29 Move 1727 | 58 553 641 475 Hop . | . . . . Pick Up 20 | 2 4 7 7 Fast Attach 12 | 6 3 3 . Attach 3 | . . . 3 Detach 1 | . 1 . . Swap 9 | . 3 2 4 Drop 17 | . 3 6 8 Fire 66 | . 26 10 30 Melee . | . . . . Ram . | . . . . Kick . | . . . . Crush . | . . . . Escape Stasis . | . . . . Rewire . | . . . . Trap 4 | . . . 4 Miscellaneous . | . . . . Route ------- -11/Scrapyard -10/Materials (discovered 4 exits: [*Mat x3] / *Min) -10/Mines (discovered 2 exits: [*Mat] / *Exi) -10/Exiles (discovered 1 exit: [*Min]) History --------- Turn | Location | Event 4 | -11/Scrapyard | Discovered new exit (range 16) 114 | -11/Scrapyard | Entered Materials 311 | -10/Materials | Build established: Mutant 311 | -10/Materials | Discovered new exit (range 10) 461 | -10/Materials | Discovered new exit (range 3) 479 | -10/Materials | Discovered new exit (range 16) 685 | -10/Materials | Discovered new exit (range 3) 1120 | -10/Materials | Entered Mines 1446 | -10/Mines | Received a Rocket Launcher from a helpful Derelict 1481 | -10/Mines | Found a hidden stash of uninstalled traps 1836 | -10/Mines | Discovered new exit (range 6) 1993 | -10/Mines | Learned location of Storage (-9) 2016 | -10/Mines | Found the Drone Emporium 2032 | -10/Mines | Found Prototype Device 2032 | -10/Mines | Identified Sensor Drone Bay 2186 | -10/Mines | Deemed a non-threat by the Exiles lab entrance 2186 | -10/Mines | Discovered new exit (range 5) 2193 | -10/Mines | Entered Exiles 2217 | -10/Exiles | Discovered new exit (range 15) 2237 | -10/Exiles | Met 8R-AWN 2259 | -10/Exiles | Met EX-HEX 2329 | -10/Exiles | Met EX-DEC 2363 | -10/Exiles | Learned location of Zion (-7) 2508 | -10/Exiles | Met EX-BIN 2533 | -10/Exiles | Aligned with FarCom system 2535 | -10/Exiles | Given EX-Vault access code 2582 | -10/Exiles | Opened EX-Vault 2594 | -10/Exiles | Found Flying Fortress v7 2599 | -10/Exiles | Found Superbattery 2605 | -10/Exiles | Found Firepult 2642 | -10/Exiles | Warned to stay clear of 0b10 Research branches 2956 | -10/Exiles | Attacked by the Exiles 3076 | -10/Exiles | Core integrity fell below 50% 3112 | -10/Exiles | Core integrity fell below 20% 3149 | -10/Exiles | Destroyed by 8R-AWN with 8R-AWN's Boregun Last Messages --------------- 03104_ Machine disabled. 03104_ HV Slug penetrates Wall. 03105_ Penetrated by HV Slug. 03108_ Lgt. Treads destroyed. 03110_ HV Slug penetrates Earth. 03111_ Penetrated by HV Slug. 03118_ Machine disabled. 03119_ Penetrated by HV Slug. 03120_ Assault Rifle destroyed. 03122_ Penetrated by HV Slug. 03122_ Critical hit. 03122_ Assault Rifle destroyed. 03123_ Penetrated by HV Slug. 03125_ HV Slug penetrates Wall. 03132_ Penetrated by HV Slug. 03135_ HV Slug penetrates Machine. 03139_ HV Slug penetrates Wall. 03142_ Penetrated by HV Slug. 03142_ HV Slug penetrates Wall. 03149_ Penetrated by HV Slug. Map ----- +----------------------------------------------------+ | ?????????????????????????????????????????????????? | | ?????????????????????????????????????????????????? | | ?????????????????????????????????????????????????? | | ?????????????????????????????????????????????????? | | ?????????????????????????????????????????????????? | | ?????????????????????????????????????????????????? | | ?????????????????????????????????????????????????? | | ?????????????????????????????????????????????????? | | ?????????????????????????????????????????????????? | | ?????????????????????????????????????????????????? | | ???????????????????????????????????#######???????? | | ????????????????????? ######???????#! ! "#???????? | | ???????????????????? #""#??????# "#???????? | | ???????????????????? ??????# "#???????? | | ???????????????????" #????## ""#???????? | | ???????????????????? #####" ""#???????? | | ????????????????????# ##" ""#???????? | | ?????????????????????# #"" ###???????? | | ????????????????????????# ###???????? | | ???????????????????????????# ##??????? | | ???????????????????????????### ####???? | | ?????????????????????########" #???? | | ?????????????????????# !"""" #???? | | ?????????????????????#! g # # ###? | | ?????????????????????#! ## %% " ## | | ?????????????????????#! @ ##?## | | ?????????????????????# !"""" ;;#???#" | | ?????????????????????#########; #??### | | ????????????????????????????? ##?????## | | ????????????????????????????### #????????# | | ??????????????????????????????# #?????????? | | ??????????????????????????????# #???????????# | | ??????????????????????????????# #????????????##" | | ??????????????????????????????# #?????????????#"" | | ??????????????????????????????? #????????????##" | | ??????????????????????????????? #????????????#"" | | ??????????????????????????????? #????????????#""" | | ??????????????????????????????? #???????????#""" | | ??????????????????????????????? ????????????#""" | | ??????????????????????????????? ????????????#"" | | ??????????????????????????????? ????????????#""" | | ????????????????????????????????????????????#"" | | ????????????????????????????????????????????##"" | | ?????????????????????????????????????????????#"""" | | ??????????????????????????????????????????????# | | ??????????????????????????????????????????????#" | | ??????????????????????????????????????????????#""" | | ??????????????????????????????????????????????#"" | | ???????????????????????????????????????????????" | | ???????????????????????????????????????????????""" | +----------------------------------------------------+ Best States ------------- Heat Dissipation 39 Energy Generation 10 Energy Capacity 250 Matter Stores 300 Matter Capacity 300 Sight Range 16 Terrain Scan Density 10 Evasion (%) 40 Recoil Reduction 2 Item Schematics ----------------- None Robot Schematics ------------------ None Fabricated ------------ Nothing Alien Tech Used ----------------- None Achievements -------------- None Challenges ------------ None Game ------ Seed SurgeDroneNanovents Manual? 0 Play Time 00:13:09 Cumulative 158.5 hours Start 2021.05.22 @ 22:47:09 End 2021.05.22 @ 22:59:10 Sessions 1 Manual Loads 0 Difficulty Rogue Special Mode None Game No. 201 Rogue 114 Adventurer 87 Explorer 0 Win Type - Total 4 Types 3/0/0/1/0/0/0/0/0 Lore% 62 Gallery% 71 Achievement% 58 Wizard Run 0 Options --------- ASCII 0 Keyboard 1 Movement Numpad Keybinds 0 Fullscreen 1 Font 18/Smallcaps Map View 76x50 Tactical HUD 1 Map Filters NONE Filters NONE Steam 1 RUN: b735d861-d84d-4052-82f2-ff9dc0971412